bitfinex/quotes_BTCUSD_20250527
["timestamp","ask_amount","ask_price","bid_price","bid_amount"]
[1748368519518,0.85359258,110210.0,110200.0,0.02668925]
[1748368521150,0.85359258,110210.0,110200.0,0.02668857]
[1748368521556,0.85359258,110210.0,110200.0,0.0182]
[1748368521884,0.85359258,110210.0,110200.0,0.02668817]
[1748368523746,0.85359258,110210.0,110200.0,0.02668764]
[1748368524913,0.85359258,110210.0,110200.0,0.01048764]
[1748368525139,0.86969258,110210.0,110200.0,0.01048764]
[1748368525355,0.85359258,110210.0,110200.0,0.01048764]
[1748368525803,1.15911258,110210.0,110200.0,0.01048764]
[1748368526216,1.15911258,110210.0,110200.0,0.01048739]
[1748368526421,0.61073312,110210.0,110200.0,0.00560739]
[1748368527682,0.30521312,110210.0,110200.0,0.00560739]
[1748368527883,0.61065312,110210.0,110200.0,0.02070739]
[1748368528870,0.61065312,110210.0,110200.0,0.0151]
[1748368531541,0.30521312,110210.0,110200.0,0.0151]
[1748368538328,0.30521312,110210.0,110200.0,0.0307]
[1748368538543,0.30521312,110210.0,110200.0,0.02357795]
[1748368538964,0.30521312,110210.0,110200.0,0.02357931]
[1748368539653,0.30521312,110210.0,110200.0,0.02358088]
[1748368540351,0.30521312,110210.0,110200.0,0.02358042]
[1748368541894,0.30521312,110210.0,110200.0,0.02358302]
[1748368542162,0.30521312,110210.0,110200.0,0.02358212]
[1748368543861,0.30521312,110210.0,110200.0,0.02358751]
[1748368544612,0.30521312,110210.0,110200.0,0.02358518]
[1748368544866,0.30521312,110210.0,110200.0,0.02358505]
[1748368545296,0.30521312,110210.0,110200.0,0.0235857]
[1748368545543,0.30521312,110210.0,110190.0,4.927e-05]
[1748368545544,0.20510329,110200.0,110190.0,4.927e-05]
[1748368545807,0.92942096,110200.0,110190.0,4.927e-05]
[1748368546220,0.29615724,110200.0,110190.0,4.927e-05]
[1748368546466,0.29615724,110200.0,110190.0,0.01534927]
[1748368546726,0.28161639,110200.0,110190.0,0.01534927]
[1748368547179,0.28161639,110200.0,110190.0,0.01734927]
[1748368547408,0.28161639,110200.0,110190.0,0.02583229]
[1748368547657,0.28161639,110200.0,110190.0,0.01734927]
[1748368547906,0.28161639,110200.0,110190.0,0.02583153]
[1748368548137,0.28161639,110200.0,110190.0,0.04013153]
[1748368548378,0.28161639,110200.0,110190.0,0.65699525]
[1748368548627,0.28161639,110200.0,110190.0,0.65799525]
[1748368548867,0.28161639,110200.0,110190.0,0.04113345]
[1748368551199,0.28161639,110200.0,110190.0,0.03264927]
[1748368551439,0.29069055,110200.0,110190.0,0.83949937]
[1748368551700,0.27254215,110200.0,110190.0,0.64951299]
[1748368551932,0.27254215,110200.0,110190.0,0.03264927]
[1748368552189,0.27254215,110200.0,110190.0,0.64951299]
[1748368552924,0.25554215,110200.0,110190.0,0.33740927]
[1748368554392,0.91844672,110200.0,110190.0,0.00953176]
[1748368554660,0.91844672,110200.0,110190.0,0.00953197]
[1748368554876,0.91844672,110200.0,110190.0,0.00104927]
[1748368555106,0.91844672,110200.0,110190.0,0.00953214]
[1748368555335,0.91844672,110200.0,110190.0,0.00104927]
[1748368555564,0.91844672,110200.0,110190.0,0.00953186]
[1748368555793,0.270083,110200.0,110190.0,0.02483196]
[1748368556023,0.2793201,110200.0,110190.0,0.02483196]
[1748368557360,0.26477925,110200.0,110190.0,0.02483196]
[1748368557991,0.26477925,110200.0,110190.0,0.02483037]
[1748368558685,0.25554215,110200.0,110190.0,0.02483037]
[1748368559520,0.25554215,110200.0,110190.0,0.01634927]
[1748368559730,0.23854215,110200.0,110190.0,0.02483008]
[1748368560154,0.83235784,110200.0,110190.0,0.00953008]
[1748368560579,0.83235784,110200.0,110190.0,0.00953178]
[1748368560793,0.83235784,110200.0,110190.0,0.00952929]
[1748368561026,0.83235784,110200.0,110190.0,0.00104927]
[1748368561228,1.13691784,110200.0,110190.0,0.00104927]
[1748368562910,1.13691784,110200.0,110190.0,0.00952902]
[1748368563322,0.588543,110200.0,110190.0,0.00952902]
[1748368563526,1.13691784,110200.0,110190.0,0.00952902]
[1748368563949,1.13691784,110200.0,110190.0,0.00952725]
[1748368564579,1.13691784,110200.0,110190.0,0.00104927]
[1748368564785,1.13691784,110200.0,110190.0,0.00952313]
[1748368565037,1.13691784,110200.0,110190.0,0.00104927]
[1748368565256,1.13691784,110200.0,110190.0,0.00952299]
[1748368565462,1.13691784,110200.0,110190.0,0.00104927]
[1748368566527,1.13691784,110200.0,110190.0,0.00952271]
[1748368566964,1.13691784,110200.0,110190.0,0.0095226]
[1748368566965,1.11991784,110200.0,110190.0,0.0095226]
[1748368567674,0.571543,110200.0,110190.0,0.0095226]
[1748368567880,1.11991784,110200.0,110190.0,0.0095226]
[1748368568092,0.571543,110200.0,110190.0,0.0095226]
[1748368568305,1.11991784,110200.0,110190.0,0.0095226]
[1748368569417,1.11991784,110200.0,110190.0,0.00951823]
[1748368569826,1.11991784,110200.0,110190.0,0.00104927]
[1748368570033,1.11991784,110200.0,110190.0,0.00951851]
[1748368571600,1.70544883,110200.0,110190.0,0.00104927]
[1748368571820,2.05829268,110200.0,110190.0,0.00104927]
[1748368572038,2.09035923,110200.0,110190.0,0.00104927]
[1748368572269,2.13103504,110200.0,110190.0,0.00104927]
[1748368572702,2.13103504,110200.0,110190.0,4.927e-05]
[1748368573118,2.13201343,110200.0,110190.0,4.927e-05]
[1748368573327,2.13301343,110200.0,110190.0,4.927e-05]
[1748368573978,2.11601343,110200.0,110190.0,4.927e-05]
[1748368575509,2.05329268,110200.0,110190.0,4.927e-05]
[1748368576592,0.956543,110200.0,110190.0,4.927e-05]
[1748368576814,1.50459784,110200.0,110190.0,4.927e-05]
[1748368577024,1.56729408,110200.0,110190.0,4.927e-05]
[1748368577256,1.56726846,110200.0,110190.0,4.927e-05]
[1748368577483,1.50459784,110200.0,110190.0,4.927e-05]
[1748368577726,0.956223,110200.0,110190.0,4.927e-05]
[1748368577940,1.50459784,110200.0,110190.0,4.927e-05]
[1748368579973,0.57744215,110200.0,110190.0,4.927e-05]
[1748368580190,1.51463699,110200.0,110190.0,4.927e-05]
[1748368580464,1.54547784,110200.0,110190.0,4.927e-05]
[1748368580681,1.14075784,110200.0,110190.0,4.927e-05]
[1748368580970,0.30710215,110200.0,110190.0,4.927e-05]
[1748368581191,0.18954215,110200.0,110190.0,0.03134927]
[1748368581404,0.18954215,110200.0,110190.0,0.03980372]
[1748368582494,0.18954215,110200.0,110190.0,0.03134927]
[1748368582700,0.18954215,110200.0,110190.0,0.03980342]
[1748368584509,0.18954215,110200.0,110190.0,0.03980544]
[1748368587339,0.18954215,110200.0,110190.0,0.03980556]
[1748368587557,0.18954215,110200.0,110190.0,0.03980603]
[1748368588182,0.17254215,110200.0,110190.0,0.03980602]
[1748368588613,0.17254215,110200.0,110190.0,0.21285394]
[1748368588836,0.1834882,110200.0,110190.0,0.77937882]
[1748368589059,0.01107375,110200.0,110190.0,1.44144837]
[1748368589295,0.002,110200.0,110190.0,2.35536137]
[1748368589504,0.02922214,110200.0,110190.0,1.84152737]
[1748368589720,0.02922156,110200.0,110190.0,1.77452737]
[1748368589925,0.02014757,110200.0,110190.0,1.87508737]
[1748368590137,0.02014749,110200.0,110190.0,1.87508737]
[1748368590358,0.001,110200.0,110190.0,3.58861337]
[1748368590636,0.21774671,110220.0,110210.0,0.34]
[1748368590850,0.21774671,110220.0,110210.0,1.40562657]
[1748368591298,0.21774671,110220.0,110210.0,0.86632515]
[1748368591520,0.21774671,110220.0,110210.0,0.87539848]
[1748368591521,0.20867453,110220.0,110210.0,0.87539848]
[1748368591751,0.20867453,110220.0,110210.0,0.88447165]
[1748368592205,0.20867453,110220.0,110210.0,0.87539848]
[1748368592429,0.19960227,110220.0,110210.0,0.87539848]
[1748368592648,0.19960227,110220.0,110210.0,1.42377332]
[1748368592875,0.19960227,110220.0,110210.0,0.8935449]
[1748368593106,0.19960227,110220.0,110210.0,0.88447173]
[1748368593317,0.20060227,110220.0,110210.0,0.88447173]
[1748368593530,0.20060227,110220.0,110210.0,0.8935449]
[1748368594404,0.20060227,110220.0,110210.0,0.90261791]
[1748368594405,0.03729004,110220.0,110210.0,0.90261791]
[1748368594613,0.22781807,110220.0,110210.0,0.87343848]
[1748368594820,0.2096733,110220.0,110210.0,0.86436515]
[1748368595258,0.19052803,110220.0,110210.0,1.41273999]
[1748368595464,0.19052803,110220.0,110210.0,0.86436515]
[1748368595700,0.19052803,110220.0,110210.0,0.87343848]
[1748368596552,0.19052803,110220.0,110210.0,1.42181332]
[1748368597208,0.19052803,110220.0,110210.0,0.87343848]
[1748368597424,0.19052803,110220.0,110210.0,1.43088657]
[1748368598952,0.19052803,110220.0,110210.0,0.87343848]
[1748368599182,0.19052803,110220.0,110210.0,1.42181332]
[1748368600306,0.19052803,110220.0,110210.0,0.86436515]
[1748368600933,0.19052803,110220.0,110210.0,0.56048515]
[1748368601147,0.19052803,110220.0,110210.0,0.87311848]
[1748368601981,0.19052803,110220.0,110210.0,0.88219173]
[1748368602329,0.19052803,110220.0,110210.0,0.86404515]
[1748368603173,0.17352803,110220.0,110210.0,0.86404515]
[1748368606151,0.01814511,110220.0,110210.0,1.42149316]
[1748368606367,0.19960038,110220.0,110210.0,1.42149316]
[1748368606778,0.19960038,110220.0,110210.0,1.52161332]
[1748368607726,0.19960038,110220.0,110210.0,1.51253999]
[1748368607946,0.19960038,110220.0,110210.0,0.97323848]
[1748368610092,0.19052795,110220.0,110210.0,0.95489173]
[1748368610308,0.16445527,110220.0,110210.0,0.95489173]
[1748368610520,0.16445527,110220.0,110210.0,0.97303881]
[1748368611193,0.16445527,110220.0,110210.0,0.96396531]
[1748368611413,0.16445527,110220.0,110210.0,0.87291881]
[1748368613794,0.16445527,110220.0,110210.0,0.86384531]
[1748368614210,0.16445527,110220.0,110210.0,0.87291881]
[1748368614635,0.16445527,110220.0,110210.0,0.88199214]
[1748368615093,0.16445527,110220.0,110210.0,0.87291881]
[1748368615511,0.16445527,110220.0,110210.0,1.42129365]
[1748368616312,0.16445527,110220.0,110210.0,1.43036707]
[1748368616716,0.16445527,110220.0,110210.0,1.4394404]
[1748368617263,0.47307429,110230.0,110220.0,0.015]
[1748368617458,0.55620018,110230.0,110220.0,0.015]
[1748368618132,0.01814494,110220.0,110210.0,1.42896575]
[1748368618335,0.19960021,110220.0,110210.0,1.42896575]
[1748368618538,0.01814494,110220.0,110210.0,1.42896575]
[1748368618967,0.02721745,110220.0,110210.0,1.41989283]
[1748368619180,0.3848329,110230.0,110220.0,0.56407256]
[1748368619393,0.29577829,110230.0,110220.0,1.10452756]
[1748368619606,0.31292117,110230.0,110220.0,1.5559764]
[1748368619825,0.30384948,110230.0,110220.0,1.4345914]
[1748368620032,0.31292117,110230.0,110220.0,1.4345914]
[1748368620242,0.31999286,110230.0,110220.0,1.1283474]
[1748368620456,0.32199286,110230.0,110220.0,1.5839604]
[1748368621318,0.32199352,110230.0,110220.0,1.00660256]
[1748368621524,0.29477829,110230.0,110220.0,1.00660256]
[1748368621733,0.30385006,110230.0,110220.0,1.5569464]
[1748368622158,0.30385006,110230.0,110220.0,1.5383224]
[1748368622371,0.30385006,110230.0,110220.0,1.5224224]
[1748368622859,0.49251758,110230.0,110220.0,0.749975]
[1748368623072,0.59917153,110230.0,110220.0,0.34]
[1748368623755,1.14754637,110230.0,110220.0,0.34]
[1748368623991,0.19056244,110200.0,110190.0,0.49605394]
[1748368624213,0.1996366,110200.0,110190.0,0.73496215]
[1748368624438,0.1826366,110200.0,110190.0,0.75311195]
[1748368624652,0.1826366,110200.0,110190.0,0.68617395]
[1748368624862,0.0181484,110200.0,110190.0,0.8213006]
[1748368625309,0.02722272,110200.0,110190.0,1.1653006]
[1748368625729,0.02722272,110200.0,110190.0,1.1683006]
[1748368626163,0.0181484,110200.0,110190.0,1.1451706]
[1748368627222,0.01814807,110200.0,110190.0,1.1451706]
[1748368628488,0.01814807,110200.0,110190.0,1.69354544]
[1748368628696,0.02722156,110200.0,110190.0,1.69354544]
[1748368628968,0.0362958,110200.0,110190.0,1.69354544]
[1748368629393,0.03629572,110200.0,110190.0,1.69354544]
[1748368630699,0.02722156,110200.0,110190.0,1.69354544]
[1748368630920,0.00907317,110210.0,110200.0,0.56441043]
[1748368631141,0.65192464,110230.0,110210.0,0.20869083]
[1748368631359,0.48921792,110230.0,110220.0,0.19052786]
[1748368631577,0.47221792,110230.0,110220.0,0.19052786]
[1748368631787,0.47221792,110230.0,110220.0,0.19052795]
[1748368631994,0.47221792,110230.0,110220.0,0.53052795]
[1748368632387,0.47221792,110230.0,110220.0,0.52145527]
[1748368632640,0.47221792,110230.0,110220.0,0.53052795]
[1748368632851,0.45721792,110230.0,110220.0,0.53960054]
[1748368633055,0.47241792,110230.0,110220.0,0.53960054]
[1748368633693,0.46334623,110230.0,110220.0,0.53960054]
[1748368633917,0.45427429,110230.0,110220.0,0.34]
[1748368634133,0.56132824,110230.0,110220.0,0.34]
[1748368634368,0.20869141,110210.0,110200.0,0.85363085]
[1748368634597,0.02721968,110210.0,110200.0,0.85363085]
[1748368634832,0.02721968,110210.0,110200.0,0.86270468]
[1748368635059,0.02721959,110210.0,110200.0,0.86270468]
[1748368635340,0.00907301,110210.0,110200.0,0.86270468]
[1748368635571,0.01814618,110210.0,110200.0,0.86470468]
[1748368635804,0.01814618,110210.0,110200.0,0.86270468]
[1748368636035,0.01814626,110210.0,110200.0,0.86470468]
[1748368636260,0.01814618,110210.0,110200.0,0.86470468]
[1748368636943,0.02721927,110210.0,110200.0,0.86470468]
[1748368637356,0.0181461,110210.0,110200.0,0.86470468]
[1748368637820,0.02721935,110210.0,110200.0,1.41307952]
[1748368638002,0.0181461,110210.0,110200.0,1.41307952]
[1748368638805,0.22214127,110220.0,110210.0,0.53054515]
[1748368639062,0.31319522,110220.0,110210.0,0.53054523]
[1748368639934,0.30412246,110220.0,110210.0,0.52147173]
[1748368640167,0.30412246,110220.0,110210.0,0.53154531]
[1748368641240,0.30412246,110220.0,110210.0,0.54061881]
[1748368641720,0.30412246,110220.0,110210.0,0.342]
[1748368642177,0.30412246,110220.0,110210.0,0.002]
[1748368645712,0.28712246,110220.0,110210.0,0.002]
[1748368647905,0.30166331,110220.0,110210.0,0.002]
[1748368650736,0.27112246,110220.0,110210.0,0.19254523]
[1748368650975,0.28019522,110220.0,110210.0,0.002]
[1748368651411,0.29639522,110220.0,110210.0,0.002]
[1748368651628,0.28019522,110220.0,110210.0,0.002]
[1748368652723,0.26319522,110220.0,110210.0,0.002]
[1748368654460,0.26319522,110220.0,110210.0,0.18347173]
[1748368654687,0.26319522,110220.0,110210.0,0.19254531]
[1748368655962,0.24759522,110220.0,110210.0,0.20161881]
[1748368656140,0.24759522,110220.0,110210.0,0.21811881]
[1748368656363,0.25666773,110220.0,110210.0,0.23626556]
[1748368656805,0.25763549,110230.0,110220.0,0.5806728]
[1748368657042,0.46628854,110230.0,110220.0,0.56252803]
[1748368657286,0.27577846,110230.0,110220.0,0.57414515]
[1748368657516,0.28485023,110230.0,110220.0,0.57414515]
[1748368658143,0.28485023,110230.0,110220.0,0.58343366]
[1748368658791,0.47536088,110230.0,110220.0,0.58343366]
[1748368658999,0.29392208,110230.0,110220.0,0.58343366]
[1748368659824,0.27692208,110230.0,110220.0,0.58343366]
[1748368660473,0.26785023,110230.0,110220.0,0.58343366]
[1748368661999,0.26785023,110230.0,110220.0,0.55796148]
[1748368662218,0.26785023,110230.0,110220.0,0.56703366]
[1748368662428,0.47366088,110230.0,110220.0,0.56703366]
[1748368662917,0.47366088,110230.0,110220.0,0.55796148]
[1748368663133,0.47366146,110230.0,110220.0,0.56703383]
[1748368663362,0.47366146,110230.0,110220.0,0.57610609]
[1748368663844,0.29222266,110230.0,110220.0,0.57610609]
[1748368664066,0.45836146,110230.0,110220.0,0.57610609]
[1748368665919,0.45836146,110230.0,110220.0,0.56703333]
[1748368666161,0.44928985,110230.0,110220.0,0.54888872]
[1748368666607,0.44928886,110230.0,110220.0,0.56498872]
[1748368666816,0.44928886,110230.0,110220.0,1.11336356]
[1748368667025,0.44928886,110230.0,110220.0,1.12243582]
[1748368667507,0.44928886,110230.0,110220.0,0.57406098]
[1748368667723,0.43228886,110230.0,110220.0,0.57406098]
[1748368668794,0.44136071,110230.0,110220.0,0.57406098]
[1748368669015,0.23270677,110230.0,110220.0,0.58313316]
[1748368669239,0.22363549,110230.0,110220.0,1.147408]
[1748368670728,0.23270668,110230.0,110220.0,1.147408]
[1748368670940,0.22363549,110230.0,110220.0,1.147408]
[1748368671156,0.23270668,110230.0,110220.0,1.147408]
[1748368672237,0.24177804,110230.0,110220.0,1.147408]
[1748368672456,0.25084956,110230.0,110220.0,1.147408]
[1748368672901,0.24177804,110230.0,110220.0,1.147408]
[1748368673130,0.24177804,110230.0,110220.0,1.13811949]
[1748368673838,0.25084948,110230.0,110220.0,1.13811949]
[1748368674052,0.25992109,110230.0,110220.0,1.13811949]
[1748368674257,0.259921,110230.0,110220.0,1.13811949]
[1748368674468,0.26899327,110230.0,110220.0,1.12221949]
[1748368674685,0.25199327,110230.0,110220.0,1.12221949]
[1748368674944,0.43343265,110230.0,110220.0,0.3561]
[1748368675160,0.43841808,110230.0,110220.0,0.64224]
[1748368675373,0.42181808,110230.0,110220.0,0.64224]
[1748368675597,0.42181808,110230.0,110220.0,0.55427856]
[1748368675798,0.42181808,110230.0,110220.0,0.74480659]
[1748368676239,0.42181808,110230.0,110220.0,0.55427856]
[1748368678217,0.42181808,110230.0,110220.0,0.74480651]
[1748368678419,0.42181808,110230.0,110220.0,0.73573383]
[1748368678618,0.42181808,110230.0,110220.0,0.74480651]
[1748368679471,0.41274623,110230.0,110220.0,0.55427856]
[1748368679979,0.41274623,110230.0,110220.0,0.74480659]
[1748368680769,0.41274623,110230.0,110220.0,0.76295169]
[1748368681171,0.41274623,110230.0,110220.0,0.75387918]
[1748368681887,0.39574623,110230.0,110220.0,0.75387918]
[1748368682110,0.38014623,110230.0,110220.0,1.32752645]
[1748368682322,0.38014623,110230.0,110220.0,1.31845402]
[1748368682573,0.38014623,110230.0,110220.0,1.32752653]
[1748368682998,0.38014623,110230.0,110220.0,1.33659888]
[1748368682999,0.18963549,110230.0,110220.0,1.33659888]
[1748368683229,0.19870668,110230.0,110220.0,1.36087106]
[1748368683446,0.18963549,110230.0,110220.0,1.36087106]
[1748368683668,0.19870668,110230.0,110220.0,2.09809506]
[1748368684335,0.20777804,110230.0,110220.0,2.08289506]
[1748368684544,0.19870668,110230.0,110220.0,2.08289506]
[1748368684746,0.20777804,110230.0,110220.0,1.81841906]
[1748368684953,0.19870668,110230.0,110220.0,1.81841906]
[1748368685389,0.20777804,110230.0,110220.0,1.81841906]
[1748368685611,0.19870668,110230.0,110220.0,1.83361906]
[1748368685830,0.20777804,110230.0,110220.0,1.83361906]
[1748368686043,0.18963549,110230.0,110220.0,1.83361906]
[1748368686508,0.19870668,110230.0,110220.0,1.83361906]
[1748368686981,0.18963549,110230.0,110220.0,1.83361906]
[1748368687454,0.19870677,110230.0,110220.0,1.83361906]
[1748368687684,0.18963549,110230.0,110220.0,1.83361906]
[1748368688141,0.19870668,110230.0,110220.0,1.83361906]
[1748368688862,0.18170668,110230.0,110220.0,1.83361906]
[1748368689778,0.17263549,110230.0,110220.0,1.83361906]
[1748368690245,0.18170668,110230.0,110220.0,1.83361906]
[1748368690488,0.19077812,110230.0,110220.0,1.83361906]
[1748368690712,0.18170668,110230.0,110220.0,1.83361906]
[1748368691175,0.19077796,110230.0,110220.0,1.83361906]
[1748368691653,0.20892084,110230.0,110220.0,1.83361906]
[1748368693451,0.19984932,110230.0,110220.0,1.83361906]
[1748368693665,0.20892084,110230.0,110220.0,1.83361906]
[1748368693879,0.19984932,110230.0,110220.0,1.83361906]
[1748368694104,0.17263549,110230.0,110220.0,1.83361906]
[1748368694331,0.41228886,110230.0,110220.0,0.25203856]
[1748368694542,0.39688886,110230.0,110220.0,0.87110388]
[1748368694987,0.19077829,110230.0,110220.0,0.89577606]
[1748368695277,0.19984974,110230.0,110220.0,1.4441109]
[1748368695491,0.19984965,110230.0,110220.0,1.4441109]
[1748368695707,0.17263549,110230.0,110220.0,1.4441109]
[1748368695922,0.16470668,110230.0,110220.0,1.4592109]
[1748368696348,0.17377796,110230.0,110220.0,1.4592109]
[1748368696583,0.16470677,110230.0,110220.0,1.4592109]
[1748368696788,0.16470685,110230.0,110220.0,1.4592109]
[1748368697191,0.16470677,110230.0,110220.0,1.4592109]
[1748368697401,0.15563549,110230.0,110220.0,1.4592109]
[1748368697624,0.16470668,110230.0,110220.0,1.4592109]
[1748368697874,0.17377804,110230.0,110220.0,1.4592109]
[1748368698084,0.16470668,110230.0,110220.0,1.4592109]
[1748368698291,0.17377796,110230.0,110220.0,1.4592109]
[1748368698944,0.17377796,110230.0,110220.0,1.4441109]
[1748368700095,0.15563549,110230.0,110220.0,1.4441109]
[1748368700519,0.16470668,110230.0,110220.0,1.4441109]
[1748368701158,0.15563549,110230.0,110220.0,1.4441109]
[1748368701375,0.16470668,110230.0,110220.0,1.4441109]
[1748368701600,0.15563549,110230.0,110220.0,1.4441109]
[1748368702061,0.16470668,110230.0,110220.0,1.4441109]
[1748368703157,0.13863549,110230.0,110220.0,1.4441109]
[1748368703361,0.13863549,110230.0,110220.0,2.1259249]
[1748368703583,0.14770668,110230.0,110220.0,2.1259249]
[1748368704459,0.13863549,110230.0,110220.0,2.1259249]
[1748368710022,0.12163549,110230.0,110220.0,2.1259249]
[1748368713724,0.12163549,110230.0,110220.0,1.57755006]
[1748368713961,0.12163549,110230.0,110220.0,1.9696269]
[1748368714314,0.12163549,110230.0,110220.0,1.9583129]
[1748368714534,0.12163549,110230.0,110220.0,1.6565129]
[1748368714764,0.12163549,110230.0,110220.0,1.9579129]
[1748368715445,0.12163549,110230.0,110220.0,1.38604806]
[1748368715672,0.12163549,110230.0,110220.0,1.0272309]
[1748368715890,0.13773549,110230.0,110220.0,1.5543019]
[1748368716073,0.13773549,110230.0,110220.0,1.4277509]
[1748368716326,0.13773549,110230.0,110220.0,1.5707019]
[1748368716544,0.13773549,110230.0,110220.0,1.0272309]
[1748368716757,0.13773549,110230.0,110220.0,1.4277109]
[1748368716970,0.13773549,110230.0,110220.0,1.5542619]
[1748368717156,0.12073549,110230.0,110220.0,1.5542619]
[1748368717660,0.12980668,110230.0,110220.0,1.5542619]
[1748368717879,0.12980668,110230.0,110220.0,1.4277109]
[1748368718099,0.16324965,110230.0,110220.0,0.87929606]
[1748368718327,0.15417804,110230.0,110220.0,0.87929606]
[1748368718552,0.14510668,110230.0,110220.0,0.87929606]
[1748368718764,0.15417804,110230.0,110220.0,0.87929606]
[1748368719643,0.14510668,110230.0,110220.0,0.87929606]
[1748368719856,0.15417796,110230.0,110220.0,0.87929606]
[1748368720499,0.13603549,110230.0,110220.0,0.87929606]
[1748368720715,0.12980677,110230.0,110220.0,2.5170249]
[1748368720933,0.12980677,110230.0,110220.0,2.0063909]
[1748368721157,0.12073549,110230.0,110220.0,2.0063909]
[1748368721577,0.12980677,110230.0,110220.0,2.0063909]
[1748368722264,0.12073549,110230.0,110220.0,2.0063909]
[1748368722702,0.12980668,110230.0,110220.0,2.0063909]
[1748368722924,0.12073549,110230.0,110220.0,2.0063909]
[1748368724151,0.10373549,110230.0,110220.0,2.0063909]
[1748368725238,0.11280668,110230.0,110220.0,2.0063909]
[1748368727624,0.10373549,110230.0,110220.0,2.0063909]
[1748368731408,0.08673549,110230.0,110220.0,2.0063909]
[1748368733988,0.08673549,110230.0,110220.0,1.36509806]
[1748368734120,0.09580668,110230.0,110220.0,1.98147175]
[1748368734314,0.09580668,110230.0,110220.0,1.91852175]
[1748368734517,0.09580668,110230.0,110220.0,1.83219575]
[1748368734749,0.10487796,110230.0,110220.0,1.19394975]
[1748368734971,0.11987812,110230.0,110220.0,0.43349383]
[1748368735146,0.11987812,110230.0,110220.0,0.46071112]
[1748368735147,0.12894981,110230.0,110220.0,0.46071112]
[1748368735347,0.12894981,110230.0,110220.0,1.37800481]
[1748368735516,0.11987812,110230.0,110220.0,1.37800481]
[1748368735719,0.13802141,110230.0,110220.0,1.37800481]
[1748368735967,0.13802141,110230.0,110220.0,0.76163112]
[1748368736379,0.12894964,110230.0,110220.0,0.76163112]
[1748368736580,0.13802133,110230.0,110220.0,0.76163112]
[1748368736797,0.10173549,110230.0,110220.0,1.30961423]
[1748368737016,0.10173549,110230.0,110220.0,2.16091423]
[1748368737017,0.07063549,110230.0,110220.0,2.16091423]
[1748368737161,0.07063549,110230.0,110220.0,1.61293112]
[1748368737353,0.07063549,110230.0,110220.0,2.16091423]
[1748368738278,0.05363549,110230.0,110220.0,2.16091423]
[1748368740497,0.05363549,110230.0,110220.0,2.16079423]
[1748368741316,0.05363549,110230.0,110220.0,1.85057023]
[1748368741944,0.05363549,110230.0,110220.0,1.94929023]
[1748368742588,0.06270668,110230.0,110220.0,1.38610712]
[1748368742801,0.06893549,110230.0,110220.0,1.93409023]
[1748368744495,0.06893549,110230.0,110220.0,1.86491823]
[1748368745124,0.07800677,110230.0,110220.0,1.86491823]
[1748368745584,0.06100677,110230.0,110220.0,1.86491823]
[1748368745798,0.24244557,110230.0,110220.0,1.44725362]
[1748368746010,0.28526064,110230.0,110220.0,0.86011145]
[1748368746227,0.28526064,110230.0,110220.0,0.8510391]
[1748368746447,0.28526064,110230.0,110220.0,0.86918388]
[1748368746652,0.28526064,110230.0,110220.0,0.87825614]
[1748368746868,0.28526064,110230.0,110220.0,0.86918388]
[1748368747286,0.28526064,110230.0,110220.0,0.5503591]
[1748368747503,0.28526064,110230.0,110220.0,0.86914404]
[1748368748140,0.27618936,110230.0,110220.0,0.56850404]
[1748368748349,0.27618936,110230.0,110220.0,0.86007161]
[1748368748561,0.27618936,110230.0,110220.0,0.47885639]
[1748368748969,0.27618936,110230.0,110220.0,0.77945639]
[1748368749359,0.27618936,110230.0,110220.0,0.46978404]
[1748368749586,0.27618936,110230.0,110220.0,0.77038404]
[1748368750243,0.27618936,110230.0,110220.0,0.74316651]
[1748368750244,0.26711792,110230.0,110220.0,0.74316651]
[1748368750446,0.26711792,110230.0,110220.0,0.7522391]
[1748368750673,0.26711792,110230.0,110220.0,0.25203856]
[1748368750674,0.25804623,110230.0,110220.0,0.25203856]
[1748368750891,0.34910018,110230.0,110220.0,0.25203856]
[1748368751110,0.34910018,110230.0,110220.0,0.55259856]
[1748368751349,0.34910018,110230.0,110220.0,0.25203856]
[1748368751568,0.34910018,110230.0,110200.0,0.00894045]
[1748368751569,0.20664515,110210.0,110200.0,0.00894045]
[1748368751779,0.22314515,110210.0,110200.0,0.64056]
[1748368752441,0.22314515,110210.0,110200.0,0.8220482]
[1748368752689,0.20614515,110210.0,110200.0,0.83312252]
[1748368752906,0.20614515,110210.0,110200.0,0.83512252]
[1748368753122,0.21521857,110210.0,110200.0,0.83512252]
[1748368753337,0.2971991,110210.0,110200.0,0.004]
[1748368753551,0.85972306,110210.0,110200.0,0.004]
[1748368753985,0.31173995,110210.0,110200.0,0.004]
[1748368754200,0.31173995,110210.0,110200.0,0.002]
[1748368754409,0.32088773,110210.0,110200.0,0.002]
[1748368754840,0.22186244,110200.0,110190.0,4.927e-05]
[1748368755076,0.31291639,110200.0,110190.0,4.927e-05]
[1748368756001,0.31291639,110200.0,110190.0,0.18255394]
[1748368756209,0.03444807,110200.0,110190.0,0.75776166]
[1748368756413,0.04352173,110200.0,110190.0,0.75776166]
[1748368756704,0.02537366,110200.0,110190.0,1.09776166]
[1748368756911,0.01814741,110200.0,110190.0,1.09776166]
[1748368757131,0.0272214,110200.0,110190.0,1.09776166]
[1748368757341,0.03474609,110210.0,110200.0,0.54871043]
[1748368757551,0.23436474,110210.0,110200.0,1.39717362]
[1748368757763,0.03474609,110210.0,110200.0,1.40624745]
[1748368757996,0.04381951,110210.0,110200.0,1.40624745]
[1748368758906,0.23436482,110210.0,110200.0,1.40624745]
[1748368759112,0.23436482,110210.0,110200.0,1.38809971]
[1748368759318,0.23436482,110210.0,110200.0,1.3971737]
[1748368759648,0.23236482,110210.0,110200.0,1.3971737]
[1748368759902,0.1964882,110200.0,110190.0,0.00927066]
[1748368760114,0.1964882,110200.0,110190.0,0.84025056]
[1748368760357,0.21463677,110200.0,110190.0,0.34927066]
[1748368760594,0.30569072,110200.0,110190.0,0.64967066]
[1748368761048,0.30569072,110200.0,110190.0,0.65067066]
[1748368761252,0.30569072,110200.0,110190.0,0.65167066]
[1748368761877,0.30569072,110200.0,110190.0,0.64244927]
[1748368762090,0.30569072,110200.0,110190.0,0.64240927]
[1748368762323,0.30569072,110200.0,110190.0,0.00204927]
[1748368762741,0.32169072,110200.0,110190.0,0.00204927]
[1748368766773,0.30469072,110200.0,110190.0,0.00204927]
[1748368769258,0.19863677,110200.0,110190.0,0.73153705]
[1748368769469,0.21461865,110210.0,110200.0,0.19963677]
[1748368769671,0.30881935,110210.0,110200.0,1.04785988]
[1748368769895,0.29974618,110210.0,110200.0,0.49987677]
[1748368770333,0.20869223,110210.0,110200.0,0.50895085]
[1748368770671,0.20869223,110210.0,110200.0,0.49987677]
[1748368770876,0.19961881,110210.0,110200.0,0.30024]
[1748368771095,0.23181881,110210.0,110200.0,0.49987693]
[1748368771299,0.31379926,110210.0,110200.0,0.30024]
[1748368771675,0.01814807,110200.0,110190.0,0.19062909]
[1748368771889,0.31381631,110200.0,110190.0,4.927e-05]
[1748368772953,0.31381631,110200.0,110190.0,0.00104927]
[1748368773186,0.31381631,110200.0,110190.0,0.00204927]
[1748368773875,0.29681631,110200.0,110190.0,0.00204927]
[1748368778293,0.29681631,110200.0,110190.0,0.01049891]